lending/lending_fUSD_20260119
["ID","MTS","AMOUNT","RATE_DAILY","PERIOD"]
[402686206,1768804246259,-4458.9,0.0001782,2]
[402686207,1768804246268,-5224.98447911,0.0001783,2]
[402686208,1768804246277,-535.0,0.00017833,2]
[402686209,1768804246287,-750.0,0.00017833,2]
[402686210,1768804246296,-200.0,0.00017836,2]
[402686211,1768804246305,-168.89824346,0.00017836,2]
[402686212,1768804246315,-269.32422606,0.00017836,2]
[402686213,1768804246324,-212.26400867,0.00017836,2]
[402686214,1768804246335,-200.0,0.00017856,2]
[402686215,1768804246345,-150.0,0.00017863,2]
[402686216,1768804246355,-500.0,0.00017863,2]
[402686217,1768804246364,-4458.9,0.00017865,2]
[402686218,1768804246373,-750.0,0.00017866,2]
[402686219,1768804246382,-1027.83837402,0.00017881,2]
[402686220,1768804246393,-535.0,0.00017887,2]
[402686222,1768804246402,-153.37786433,0.0001789,2]
[402686223,1768804246411,-153.37786433,0.0001789,2]
[402686224,1768804246420,-390.5976987,0.00017895,2]
[402686225,1768804246430,-18930.95840703,0.000179,3]
[402686226,1768804246439,-677.2194146,0.000179,2]
[402686227,1768804246448,-1000.0,0.000179,2]
[402686228,1768804246457,-1085.88683398,0.000179,2]
[402686229,1768804246466,-1085.88683398,0.000179,2]
[402686230,1768804246475,-1085.88683398,0.000179,2]
[402686231,1768804246484,-1085.88683398,0.000179,2]
[402686232,1768804246493,-1085.88683398,0.000179,2]
[402686233,1768804246502,-1085.88683398,0.000179,2]
[402686234,1768804246511,-1085.88683398,0.000179,2]
[402686235,1768804246521,-1085.88683398,0.000179,2]
[402686236,1768804246534,-1085.88683398,0.000179,2]
[402686237,1768804246544,-578.0,0.000179,6]
[402686238,1768804246553,-1085.88683398,0.000179,2]
[402686239,1768804246563,-1085.88683398,0.000179,2]
[402686240,1768804246573,-13764.90298621,0.000179,2]
[402686241,1768804246583,-14044.61922147,0.000179,2]
[402686242,1768804246594,-5382.95214915,0.000179,2]
[402686243,1768804246606,-688.01140589,0.000179,2]
[402686244,1768804246616,-10117.10825468,0.000179,2]
[402686245,1768804246626,-1669.55386707,0.000179,2]
[402686246,1768804246636,-832.99271072,0.000179,2]
[402686247,1768804246645,-500.0,0.000179,2]
[402686248,1768804246654,-500.0,0.000179,2]
[402686249,1768804246664,-500.0,0.000179,2]
[402686250,1768804246674,-500.0,0.000179,2]
[402686251,1768804246683,-500.0,0.000179,2]
[402686252,1768804246692,-500.0,0.000179,2]
[402686253,1768804246702,-500.0,0.000179,2]
[402686254,1768804246711,-500.0,0.000179,2]
[402686255,1768804246721,-500.0,0.000179,2]
[402686256,1768804246731,-500.0,0.000179,2]
[402686257,1768804246740,-500.0,0.000179,2]
[402686258,1768804246750,-500.0,0.000179,2]
[402686259,1768804246759,-500.0,0.000179,2]
[402686260,1768804246768,-500.0,0.000179,2]
[402686261,1768804246778,-500.0,0.000179,2]
[402686262,1768804246787,-500.0,0.000179,2]
[402686263,1768804246797,-500.0,0.000179,2]
[402686264,1768804246808,-500.0,0.000179,2]
[402686265,1768804246817,-500.0,0.000179,2]
[402686266,1768804246828,-500.0,0.000179,2]
[402686267,1768804246837,-500.0,0.000179,2]
[402686268,1768804246847,-500.0,0.000179,2]
[402686269,1768804246857,-500.0,0.000179,2]
[402686270,1768804246868,-500.0,0.000179,2]
[402686271,1768804246877,-500.0,0.000179,2]
[402686272,1768804246887,-500.0,0.000179,2]
[402686273,1768804246897,-500.0,0.000179,2]
[402686274,1768804246906,-500.0,0.000179,2]
[402686275,1768804246917,-500.0,0.000179,2]
[402686276,1768804246927,-500.0,0.000179,2]
[402686277,1768804246936,-6346.0,0.000179,2]
[402686278,1768804246946,-150.0,0.00017905,2]
[402686279,1768804246956,-1904.4491247,0.00017907,2]
[402686280,1768804246967,-4458.9,0.0001791,2]
[402686281,1768804246976,-200.49238854,0.00017918,2]
[402686282,1768804246985,-503.51325329,0.00017918,2]
[402686283,1768804246995,-269.32422606,0.00017918,2]
[402686284,1768804247004,-212.26400867,0.00017918,2]
[402686285,1768804247014,-750.0,0.00017924,2]
[402686286,1768804247023,-750.0,0.00017934,2]
[402686287,1768804247036,-334.5472959,0.0001794,2]
[402686288,1768804247046,-1999.0,0.0001794,2]
[402686289,1768804247056,-535.0,0.00017942,2]
[402686290,1768804247065,-4458.9,0.00017955,2]
[402686291,1768804247074,-750.0,0.00017957,2]
[402686292,1768804247083,-200.0,0.0001796,3]
[402686293,1768804247093,-393.19983365,0.00017964,2]
[402686294,1768804247103,-750.0,0.00017971,2]
[402686295,1768804247112,-549.27828535,0.00017972,2]
[402686296,1768804247121,-500.0,0.00017972,2]
[402686297,1768804247131,-500.0,0.00017972,2]
[402686298,1768804247141,-500.0,0.00017972,2]
[402686299,1768804247150,-500.0,0.00017972,2]
[402686300,1768804247163,-500.0,0.00017972,2]
[402686301,1768804247173,-153.37786433,0.00017973,2]
[402686302,1768804247183,-14902.0,0.00017973,2]
[402686303,1768804247192,-168.89824346,0.00017973,2]
[402686304,1768804247201,-153.37786433,0.00017973,2]
[402686305,1768804247212,-269.32422606,0.00017973,2]
[402686306,1768804247221,-212.26400867,0.00017973,2]
[402686307,1768804247232,-150.0,0.00017973,2]
[402686308,1768804247241,-500.50331054,0.00017973,2]
[402686309,1768804247252,-500.0,0.00017973,2]
[402686310,1768804247262,-500.0,0.00017973,2]
[402686311,1768804247271,-150.0,0.00017973,2]
[402686312,1768804247282,-150.0,0.00017973,2]
[402686313,1768804247293,-500.0,0.00017982,2]
[402686314,1768804247303,-305.22366862,0.0001799,2]
[402686315,1768804247313,-305.22366862,0.0001799,2]
[402686316,1768804247323,-750.0,0.00017991,2]
[402686317,1768804247335,-1535.5472481,0.00017992,2]
[402686318,1768804247345,-3392.6596013,0.00017992,2]
[402686319,1768804247355,-300.0,0.00017996,2]
[402686320,1768804247366,-300.0,0.00017996,2]
[402686321,1768804247376,-666.0,0.00017996,2]
[402686322,1768804247385,-1406.85,0.00017996,2]
[402686323,1768804247394,-197.72778731,0.00017996,2]
[402686324,1768804247404,-300.0,0.00017996,2]
[402686325,1768804247414,-198.90604735,0.00017996,2]
[402686326,1768804247426,-666.0,0.00017996,2]
[402686327,1768804247436,-535.0,0.00017997,2]
[402686328,1768804247447,-813.9331909,0.00017997,4]
[402686329,1768804247458,-74319.70235745,0.00017997,2]
[402686330,1768804247468,-30533.76683143,0.00017997,4]
[402686331,1768804247478,-2099.2154031,0.00017997,2]
[402686332,1768804247488,-39095.2276738,0.00017997,2]
[402686333,1768804247498,-150.0,0.00017999,2]
[402686334,1768804247508,-150.0,0.00017999,2]
[402686335,1768804247518,-150.0,0.00017999,2]
[402686336,1768804247532,-265.63394472,0.00017999,2]
[402686337,1768804247542,-150.0,0.00017999,2]
[402686338,1768804247553,-500.0,0.00017999,2]
[402686339,1768804247563,-500.0,0.00017999,2]
[402686340,1768804247575,-500.0,0.00017999,2]
[402686341,1768804247584,-509.68083814,0.00017999,2]
[402686342,1768804247594,-510.38598485,0.00017999,2]
[402686343,1768804247608,-1406.85,0.00017999,2]
[402686344,1768804247618,-1406.85,0.00017999,2]
[402686345,1768804247628,-1406.85,0.00017999,2]
[402686346,1768804247637,-1406.85,0.00017999,2]
[402686347,1768804247647,-1406.85,0.00017999,2]
[402686348,1768804247656,-1406.85,0.00017999,2]
[402686349,1768804247666,-1406.85,0.00017999,2]
[402686350,1768804247676,-1406.85,0.00017999,2]
[402686351,1768804247686,-1406.85,0.00017999,2]
[402686352,1768804247696,-1406.85,0.00017999,2]
[402686353,1768804247705,-1406.85,0.00017999,2]
[402686354,1768804247715,-1406.85,0.00017999,2]
[402686355,1768804247724,-1406.85,0.00017999,2]
[402686356,1768804247734,-1406.85,0.00017999,2]
[402686357,1768804247743,-1406.85,0.00017999,2]
[402686358,1768804247752,-1406.85,0.00017999,2]
[402686359,1768804247762,-1407.01595783,0.00017999,2]
[402686360,1768804247771,-300.0,0.00017999,2]
[402686361,1768804247781,-666.0,0.00017999,2]
[402686362,1768804247791,-155.35221,0.00018,2]
[402686363,1768804247801,-155.52459848,0.00018,2]
[402686364,1768804247810,-154.14104544,0.00018,2]
[402686365,1768804247819,-155.45042616,0.00018,2]
[402686366,1768804247828,-154.75286206,0.00018,2]
[402686367,1768804247838,-209.00621496,0.00018,2]
[402686368,1768804247847,-68740.27950252,0.00018,2]
[402686369,1768804247857,-200.0,0.00018,2]
[402686370,1768804247866,-692769.60115627,0.00018,2]
[402686371,1768804247876,-1218760.46421146,0.00018,2]
[402686372,1768804247885,-150.0,0.00018,2]
[402686373,1768804247895,-3944.93675723,0.00018,2]
[402686374,1768804247904,-150.0,0.00018,2]
[402686375,1768804247914,-500.0,0.00018,2]
[402686376,1768804247924,-500.0,0.00018,2]
[402686377,1768804247933,-500.0,0.00018,2]
[402686378,1768804247943,-500.0,0.00018,2]
[402686379,1768804247952,-500.0,0.00018,2]
[402686380,1768804247963,-500.0,0.00018,2]
[402686381,1768804247972,-500.0,0.00018,2]
[402686382,1768804247982,-293.41715476,0.00018,2]
[402686383,1768804247991,-17296.57495462,0.00018,2]
[402686384,1768804248000,-150.0,0.00018,2]
[402686385,1768804248010,-4632.49585568,0.00018,2]
[402686386,1768804248019,-3784213.74142345,0.00018,2]
[402686387,1768804248959,-947278.5482949,0.00018,2]
[402686388,1768804248980,-458181.90998322,0.00018,2]
[402686389,1768804248994,-934673.55966031,0.00018,2]
[402686390,1768804249461,-1.7e-07,0.00018,2]
[402686391,1768804249860,-4623.5,0.00015992,2]
[402686392,1768804250451,-370.032,0.00015972,2]
[402686393,1768804250462,-196.92881786,0.00015972,2]
[402686394,1768804250471,-13689.15662496,0.00015992,2]
[402686395,1768804250482,-5525.02072914,0.00015992,2]
[402686396,1768804250491,-500.0,0.00016336,2]
[402686397,1768804250500,-500.0,0.00016336,2]
[402686398,1768804250509,-500.0,0.00016336,2]
[402686399,1768804250518,-500.0,0.00016336,2]
[402686400,1768804250528,-500.0,0.00016438,2]
[402686401,1768804250539,-550.0,0.00016438,2]
[402686402,1768804250548,-500.0,0.00016438,2]
[402686403,1768804250558,-500.0,0.00016438,2]
[402686404,1768804250568,-500.0,0.00016438,2]
[402686405,1768804250576,-500.0,0.00016438,2]
[402686406,1768804250585,-500.0,0.00016438,2]
[402686407,1768804250595,-500.0,0.00016438,2]
[402686408,1768804250605,-500.0,0.00016682,2]
[402686409,1768804250614,-500.0,0.00016737,2]
[402686410,1768804250623,-204.62610627,0.00016792,2]
[402686411,1768804297328,165.11,0.00013201,2]
[402686413,1768804331263,10000.01,0.00015873,2]
[402686414,1768804331288,10000.01,0.00015873,2]
[402686415,1768804331318,10000.01,0.00015873,2]
[402686416,1768804331347,10000.01,0.00015873,2]
[402686417,1768804331372,10000.01,0.00015873,2]
[402686418,1768804331399,10000.01,0.00015873,2]
[402686419,1768804331425,10000.01,0.00015873,2]
[402686420,1768804331451,10000.01,0.00015873,2]
[402686421,1768804331475,10000.01,0.00015873,2]
[402686422,1768804331504,10000.01,0.00015873,2]
[402686423,1768804359431,179.19896779,0.00015872,2]
[402686424,1768804359473,599.07625407,0.00015872,2]
[402686425,1768804359515,238.60565533,0.00015872,2]
[402686426,1768804359552,212.51080354,0.00015872,2]
[402686427,1768804361756,500.0,0.00015872,2]
[402686428,1768804381753,300.0,0.00015872,2]
[402686429,1768804382072,230.49185109,0.000158,2]
[402686430,1768804383421,500.0,0.00015872,2]
[402686431,1768804383461,500.0,0.00015872,2]
[402686432,1768804383542,500.0,0.00015872,2]
[402686433,1768804383589,500.0,0.00015872,2]
[402686434,1768804383627,500.0,0.00015872,2]
[402686435,1768804383671,500.0,0.00015872,2]
[402686436,1768804383710,500.0,0.00015872,2]
[402686437,1768804383809,500.0,0.00015872,2]
[402686438,1768804383858,500.0,0.00015872,2]
[402686439,1768804384386,500.0,0.00015872,2]
[402686440,1768804384427,500.0,0.00015872,2]
[402686441,1768804384463,500.0,0.00015872,2]
[402686442,1768804384496,500.0,0.00015872,2]
[402686443,1768804384531,500.0,0.00015872,2]
[402686444,1768804384568,524.50931314,0.00015872,2]
[402686445,1768804384601,215.61715504,0.00015872,2]
[402686446,1768804384627,284.38284496,0.00015872,2]
[402686447,1768804384666,500.0,0.00015872,2]
[402686448,1768804384702,500.0,0.00015872,2]
[402686449,1768804384735,500.0,0.00015872,2]
[402686450,1768804384771,500.0,0.00015872,2]
[402686451,1768804384839,500.0,0.00015872,2]
[402686452,1768804396111,500.0,0.00015872,2]
[402686453,1768804396146,500.0,0.00015872,2]
[402686454,1768804420065,1450.14588546,0.000158,2]
[402686455,1768804441257,300.0,0.00015872,2]
[402686456,1768804477363,500.0,0.00015872,2]
[402686457,1768804477426,500.0,0.00015872,2]
[402686458,1768804501558,1200.0,0.00015872,2]
[402686459,1768804501592,300.0,0.00015872,2]
[402686460,1768804502950,150.52,0.00027359,120]
[402686461,1768804509164,500.0,0.00015872,2]
[402686462,1768804522558,153.66123406,0.000158,2]
[402686463,1768804546121,164.9802563,0.000158,2]
[402686464,1768804566186,167.02395873,0.00015872,2]
[402686465,1768804581563,500.0,0.00015872,2]
[402686466,1768804581619,479.81582049,0.00015872,2]
[402686467,1768804581647,20.18417951,0.00015872,2]
[402686468,1768804581691,500.0,0.00015872,2]
[402686469,1768804581725,500.0,0.00015872,2]
[402686470,1768804581801,502.45093131,0.00015872,2]
[402686471,1768804592405,500.0,0.00015872,2]
[402686472,1768804607822,419.35337785,0.00015872,2]
[402686473,1768804621319,300.0,0.00015872,2]
[402686474,1768804628347,500.0,0.00015872,2]
[402686475,1768804660738,500.0,0.00015872,2]
[402686476,1768804667057,153.66123405,0.00015786,2]
[402686477,1768804681276,300.0,0.00015872,2]
[402686478,1768804699515,500.0,0.00015872,2]
[402686479,1768804737169,500.0,0.00015872,2]
[402686480,1768804741266,300.0,0.00015872,2]
[402686481,1768804797634,153.66123405,0.00015779,2]
[402686482,1768804801611,300.0,0.00015872,2]
[402686483,1768804801643,1200.0,0.00015872,2]
[402686484,1768804804289,2841.93,0.00015863,2]
[402686485,1768804804490,8.76904323,0.00015863,2]
[402686486,1768804804514,2833.16095677,0.00015863,2]
[402686487,1768804804700,2841.93,0.00015863,2]
[402686488,1768804804913,2841.93,0.00015863,2]
[402686489,1768804805273,500.0,0.00015872,2]
[402686490,1768804805325,500.0,0.00015872,2]
[402686491,1768804805438,482.98904323,0.00015863,2]
[402686492,1768804805464,2358.94095677,0.00015863,2]
[402686493,1768804806463,1305.13129695,0.00015779,2]
[402686494,1768804835798,166.66,0.00015187,2]
[402686495,1768804896701,-166.66,0.00015507,2]
[402686496,1768804896725,-330.14659592,0.00015555,2]
[402686497,1768805067150,180.14659575,0.00015455,2]
[402686498,1768805151281,259.43,0.00015253,2]
[402686499,1768805151485,259.43,0.00015294,2]
[402686500,1768805151688,259.43,0.00015334,2]
[402686501,1768805151900,259.43,0.00015374,2]
[402686502,1768805152114,259.43,0.00015414,2]
[402686503,1768805152302,259.43,0.00015454,2]
[402687387,1768805301532,-259.43,0.00015494,2]
[402687388,1768805301555,-4.83220694,0.00015514,2]
[402687669,1768805314495,-1053.13,0.00043076,120]
[402687671,1768805314524,-5000.0,0.00043076,30]
[402687673,1768805314554,-1103.0,0.00043076,30]
[402687674,1768805314586,-5000.0,0.00043076,120]
[402687676,1768805314613,-1103.0,0.00043076,120]
[402687678,1768805314641,-150.0,0.00043076,30]
[402687679,1768805314676,-150.0,0.00043076,30]
[402687681,1768805314705,-200.0,0.00043076,30]
[402687683,1768805314734,-206.0,0.00043076,30]
[402687684,1768805314763,-500.0,0.00043076,30]
[402687686,1768805314791,-4784.21805568,0.00043076,120]
[402687688,1768805314824,-500.0,0.00043076,120]
[402687689,1768805314852,-162.0,0.00043076,30]
[402687691,1768805314879,-234.03,0.00043076,120]
[402687693,1768805314905,-800.0,0.00043076,120]
[402687694,1768805314932,-1198.0,0.00043076,30]
[402687696,1768805314961,-1198.0,0.00043076,120]
[402687697,1768805314991,-200.0,0.00043076,120]
[402687699,1768805315021,-200.0,0.00043076,120]
[402687701,1768805315050,-200.0,0.00043076,120]
[402687702,1768805315078,-200.0,0.00043076,120]
[402687704,1768805315105,-200.0,0.00043076,120]
[402687705,1768805315133,-200.0,0.00043076,120]
[402687707,1768805315161,-200.0,0.00043076,120]
[402687709,1768805315188,-200.0,0.00043076,120]
[402687710,1768805315217,-200.0,0.00043076,120]
[402687718,1768805315526,-200.0,0.00043076,120]
[402687720,1768805315553,-200.0,0.00043076,120]
[402687722,1768805315579,-200.0,0.00043076,120]
[402687723,1768805315607,-200.0,0.00043076,120]
[402687725,1768805315635,-200.0,0.00043076,120]
[402687726,1768805315662,-218.29903411,0.00043076,120]
[402687728,1768805315689,-197.54226965,0.00043076,30]
[402687730,1768805315718,-2630.12,0.00043076,120]
[402687731,1768805315746,-2630.12,0.00043076,120]
[402687733,1768805315772,-2630.12,0.00043076,120]
[402687735,1768805315801,-2630.12,0.00043076,120]
[402687736,1768805315832,-2630.12,0.00043076,120]
[402687738,1768805315862,-2630.12,0.00043076,120]
[402687739,1768805315889,-2630.12,0.00043076,120]
[402687740,1768805315917,-2630.12,0.00043076,120]
[402687741,1768805315944,-2630.12,0.00043076,120]
[402687742,1768805315972,-2630.12,0.00043076,120]
[402687743,1768805315998,-2630.12,0.00043076,120]
[402687744,1768805316028,-2630.12,0.00043076,120]
[402687746,1768805316058,-2630.12,0.00043076,120]
[402687748,1768805316090,-2356.0,0.00043076,30]
[402687749,1768805316121,-2630.12,0.00043076,120]
[402687751,1768805316151,-2630.12,0.00043076,120]
[402687752,1768805316180,-2356.0,0.00043076,120]
[402687754,1768805316209,-2630.12,0.00043076,120]
[402687756,1768805316240,-2630.12,0.00043076,120]
[402687757,1768805316272,-2630.12,0.00043076,120]
[402687759,1768805316301,-2630.12,0.00043076,120]
[402687761,1768805316330,-2630.12,0.00043076,120]
[402687762,1768805316359,-2630.12,0.00043076,120]
[402687764,1768805316388,-2630.12,0.00043076,120]
[402687766,1768805316418,-2630.12,0.00043076,120]
[402687767,1768805316447,-2630.13624207,0.00043076,120]
[402687769,1768805316474,-1000.0,0.00043076,120]
[402687771,1768805316504,-1000.0,0.00043076,30]
[402687772,1768805316531,-1000.0,0.00043076,60]
[402687774,1768805316560,-1000.0,0.00043076,60]
[402687776,1768805316588,-1000.0,0.00043076,60]
[402687777,1768805316615,-1000.0,0.00043076,120]
[402687779,1768805316641,-1000.0,0.00043076,120]
[402687780,1768805316667,-2972.17169863,0.00043076,30]
[402687782,1768805316693,-850.3,0.00043076,120]
[402687784,1768805316720,-850.3,0.00043076,120]
[402687785,1768805316748,-850.3,0.00043076,120]
[402687787,1768805316776,-850.3,0.00043076,120]
[402687789,1768805316806,-850.3,0.00043076,120]
[402687790,1768805316836,-850.3,0.00043076,120]
[402687792,1768805316867,-850.3,0.00043076,120]
[402687794,1768805316899,-850.3,0.00043076,120]
[402687795,1768805316930,-850.3,0.00043076,120]
[402687797,1768805316961,-850.3,0.00043076,120]
[402687799,1768805316993,-850.3,0.00043076,120]
[402687801,1768805317024,-850.3,0.00043076,120]
[402687802,1768805317054,-850.3,0.00043076,120]
[402687804,1768805317083,-850.3,0.00043076,120]
[402687805,1768805317110,-850.3,0.00043076,120]
[402687807,1768805317138,-850.3,0.00043076,120]
[402687809,1768805317165,-850.3,0.00043076,120]
[402687810,1768805317193,-850.3,0.00043076,120]
[402687812,1768805317220,-850.3,0.00043076,120]
[402687814,1768805317247,-850.3,0.00043076,120]
[402687815,1768805317274,-850.3,0.00043076,120]
[402687817,1768805317301,-850.3,0.00043076,120]
[402687818,1768805317328,-850.3,0.00043076,120]
[402687820,1768805317356,-850.40790822,0.00043076,120]
[402687822,1768805317382,-1000.0,0.00043076,30]
[402687823,1768805317408,-1975.29874895,0.00043076,30]
[402687825,1768805317433,-1000.0,0.00043076,60]
[402687827,1768805317459,-1000.0,0.00043076,120]
[402687828,1768805317486,-1000.0,0.00043076,60]
[402687830,1768805317513,-1000.0,0.00043076,90]
[402687832,1768805317539,-1000.0,0.00043076,60]
[402687833,1768805317566,-1000.0,0.00043076,60]
[402687835,1768805317593,-500.0,0.00043076,120]
[402687837,1768805317620,-500.0,0.00043076,120]
[402687838,1768805317646,-500.0,0.00043076,120]
[402687840,1768805317671,-500.0,0.00043076,120]
[402687842,1768805317697,-500.0,0.00043076,120]
[402687843,1768805317722,-474.38291579,0.00043076,120]
[402687845,1768805317748,-1000.0,0.00043076,30]
[402687846,1768805317775,-211.09612667,0.00043076,60]
[402687848,1768805317801,-1000.0,0.00043076,60]
[402687850,1768805317831,-1000.0,0.00043076,60]
[402687852,1768805317858,-1000.0,0.00043076,30]
[402687853,1768805317886,-1003.86240477,0.00043076,30]
[402687855,1768805317914,-1000.0,0.00043076,30]
[402687857,1768805317942,-1000.0,0.00043076,120]
[402687858,1768805317970,-1000.0,0.00043076,60]
[402687860,1768805317999,-1000.0,0.00043076,60]
[402687862,1768805318030,-500.0,0.00043076,120]
[402687863,1768805318061,-197.55008551,0.00043076,120]
[402687865,1768805318090,-3198.70720504,0.00043076,120]
[402687867,1768805318121,-16400.0,0.00043076,120]
[402687868,1768805318148,-16400.0,0.00043076,120]
[402687870,1768805318177,-1412.37292781,0.00043076,30]
[402687876,1768805318424,-891.69583313,0.00043076,120]
[402687878,1768805318455,-794.176487,0.00043076,75]
[402687880,1768805318485,-2869.83250942,0.00043076,60]
[402687881,1768805318514,-533.47961906,0.00043076,60]
[402687883,1768805318543,-179.11917563,0.00043076,30]
[402687885,1768805318571,-1446.50433959,0.00043076,33]
[402687886,1768805318597,-1942.65841349,0.00043076,120]
[402687888,1768805318624,-313.7567481,0.00043076,30]
[402687890,1768805318651,-3157.83969704,0.00043076,120]
[402687891,1768805318678,-1946.34293438,0.00043076,90]
[402687893,1768805318705,-154.2694524,0.00043076,30]
[402687895,1768805318735,-516.31665172,0.00043076,120]
[402687896,1768805318763,-543.08959121,0.00043076,30]
[402687898,1768805318789,-406.05203361,0.00043076,30]
[402687900,1768805318820,-1629.86588664,0.00043076,91]
[402687901,1768805318849,-1594.30722989,0.00043076,60]
[402687903,1768805318878,-931.68218766,0.00043076,30]
[402687905,1768805318905,-1191.55927769,0.00043076,30]
[402687906,1768805318932,-2583.4270816,0.00043076,30]
[402687908,1768805318959,-3015.78911911,0.00043076,30]
[402687910,1768805318990,-1420.86973903,0.00043076,120]
[402687911,1768805319022,-433.7638411,0.00043076,30]
[402687913,1768805319052,-1497.96934904,0.00043076,120]
[402687914,1768805319081,-2152.97614594,0.00043076,30]
[402687916,1768805319110,-1782.40345843,0.00043076,120]
[402687918,1768805319140,-786.04065636,0.00043076,30]
[402687919,1768805319171,-2053.1889812,0.00043076,120]
[402687921,1768805319200,-352.4698271,0.00043076,120]
[402687923,1768805319229,-311.70133657,0.00043076,120]
[402687924,1768805319258,-2781.89137145,0.00043076,120]
[402687926,1768805319285,-2500.0,0.00043076,30]
[402687928,1768805319313,-1668.91642652,0.00043076,30]
[402687929,1768805319340,-1043.18176999,0.00043076,120]
[402687931,1768805319369,-2602.6019607,0.00043076,120]
[402687932,1768805319395,-806.02480658,0.00043076,120]
[402687934,1768805319422,-3956.38362029,0.00043076,120]
[402687936,1768805319449,-968.93860533,0.00043076,120]
[402687937,1768805319475,-1697.93772169,0.00043076,120]
[402687939,1768805319501,-912.37119048,0.00043076,30]
[402687941,1768805319528,-519.5664654,0.00043076,30]
[402687942,1768805319558,-2312.48197019,0.00043076,30]
[402687944,1768805319585,-921.28809207,0.00043076,30]
[402687946,1768805319611,-1065.10895932,0.00043076,120]
[402687947,1768805319640,-2583.62646772,0.00043076,30]
[402687949,1768805319666,-980.81746642,0.00043076,90]
[402687951,1768805319694,-2756.00294,0.00043076,120]
[402687952,1768805319720,-1887.80929955,0.00043076,120]
[402687954,1768805319748,-884.22756048,0.00043076,120]
[402687956,1768805319775,-992.35793665,0.00043076,30]
[402687957,1768805319804,-1508.8160837,0.00043076,120]
[402687959,1768805319833,-1127.74197884,0.00043076,120]
[402687961,1768805319861,-2703.22794964,0.00043076,60]
[402687962,1768805319890,-1216.27939312,0.00043076,120]
[402687964,1768805319917,-261.37462264,0.00043076,120]
[402687966,1768805319945,-486.09515631,0.00043076,120]
[402687967,1768805319973,-548.38867758,0.00043076,30]
[402687969,1768805320001,-221.35115567,0.00043076,30]
[402687971,1768805320029,-2948.49497642,0.00043076,60]
[402687972,1768805320058,-1025.48505352,0.00043076,30]
[402687974,1768805320086,-1607.00750588,0.00043076,120]
[402687975,1768805320114,-1918.36806308,0.00043076,120]
[402687977,1768805320142,-192.90935485,0.00043076,120]
[402687978,1768805320170,-1626.59488468,0.00043076,120]
[402687979,1768805320197,-2272.45875964,0.00043076,120]
[402687980,1768805320226,-652.9712773,0.00043076,120]
[402687981,1768805320254,-150.63764395,0.00043076,30]
[402687982,1768805320280,-374.54111095,0.00043076,30]
[402687983,1768805320307,-501.31908162,0.00043076,120]
[402687985,1768805320334,-767.90682238,0.00043076,120]
[402687986,1768805320362,-184.90173715,0.00043076,30]
[402687988,1768805320389,-441.62374107,0.00043076,120]
[402687990,1768805320417,-1649.0477312,0.00043076,120]
[402687991,1768805320445,-418.26429364,0.00043076,30]
[402687993,1768805320472,-802.64675264,0.00043076,120]
[402687995,1768805320500,-382.82144878,0.00043076,120]
[402687996,1768805320528,-1459.78542242,0.00043076,30]
[402687998,1768805320555,-1432.35782061,0.00043076,120]
[402688000,1768805320583,-1079.44498072,0.00043076,30]
[402688001,1768805320611,-860.37825368,0.00043076,120]
[402688003,1768805320638,-1081.44143217,0.00043076,120]
[402688004,1768805320667,-2590.50425644,0.00043076,120]